Workbook

Sheet 0503737
A1: ОТЧЕТ | K1: ist
A2: ОБ ИСПОЛНЕНИИ УЧРЕЖДЕНИЕМ ПЛАНА ЕГО ФИНАНСОВО-ХОЗЯЙСТВЕННОЙ ДЕЯТЕЛЬНОСТИ | J2: 500 | K2: prp | N2: КОДЫ
I3: Форма по ОКУД | J3: ГОД | K3: RESERVE1 | N3: 0503737
B4: на | E4: 01 января 2017 г. | I4: Дата | K4: rod | M4: COLS_OLAP | N4: 2017-01-01
A5: Учреждение | B5: МБОУ "Кощеевская СОШ" | I5: по ОКПО | K5: vro | M5: ROWS_OLAP
A6: Обособленное подразделение | J6: 5 | K6: prd | M6: DICT01
A7: Учредитель | I7: по ОКТМО | J7: 01.01.2017 | K7: rdt | M7: DICT02 | N7: 14640440
A8: Наименование органа, осуществля- | I8: по ОКПО | K8: RESERVE2 | M8: DICT03
A9: ющего полномочия учредителя | I9: Глава по БК | J9: 3 | K9: vid | M9: DICT04
A10: Вид финансового обеспечения (деятельности) | B10: 4.субсидия на выполнение государственного (муниципального) задания | K10: glbuhg2 | M10: DICT05
A11: Периодичность: квартальная, годовая | K11: ruk3 | M11: DICT06
A12: Единица измерения: руб | I12: по ОКЕИ | M12: DICT07 | N12: 383
B13: 1. Доходы учреждения
A14: Наименование показателя* | B14: Код стро- ки | C14: Код анали- тики** | D14: Утверждено плановых назначений | E14: Исполнено плановых назначений | N14: Не исполнено
E15: через лицевые счета | F15: через банковские счета | G15: через кассу учреждения | H15: некассовыми операциями | I15: итого | N15: плановых назначений
A17: 1 | B17: 2 | C17: 3 | D17: 4 | E17: 5 | F17: 6 | G17: 7 | H17: 8 | I17: 9 | N17: 10
A18: Доходы - всего в том числе: | B18: 010 | D18: 16906612.73 | E18: 16906612.73 | F18: 0 | G18: 0 | H18: 0 | I18: 16906612.73 | N18: 0
A19: ДОХОДЫ ОТ ОКАЗАНИЯ ПЛАТНЫХ УСЛУГ (РАБОТ) | B19: 040 | C19: 130 | D19: 16906612.73 | E19: 16906612.73 | F19: 0 | G19: 0 | H19: 0 | I19: =E19+F19+G19+H19 -> 16906612.73 | J19: 040 | N19: =IF(IF(D19="",0,D19)=0,0,(IF(D19>0,IF(I19>D19,0,D19-I19),IF(I19>D19,D19-I19,0)))) -> 0
A21: * Отражается при наличии ** - Код аналитической группы подвида доходов бюджетов (разряды с 18 по 20 кода классификации доходов бюджетов)
B22: 2. Расходы учреждения | N22: Форма 0503737 с.2
A23: Наименование показателя* | B23: Код стро- ки | C23: Код анали- тики*** | D23: Утверждено плановых назначений | E23: Исполнено плановых назначений | N23: Не исполнено
E24: через лицевые счета | F24: через банковские счета | G24: через кассу учреждения | H24: некассовыми операциями | I24: итого | N24: плановых назначений
A26: 1 | B26: 2 | C26: 3 | D26: 4 | E26: 5 | F26: 6 | G26: 7 | H26: 8 | I26: 9 | N26: 10
A27: Расходы - всего в том числе: | B27: 200 | C27: х | D27: 16913528.75 | E27: 16910193.17 | F27: 0 | G27: 0 | H27: 0 | I27: 16910193.17 | N27: 3335.58
A28: РАСХОДЫ НА ВЫПЛАТЫ ПЕРСОНАЛУ В ЦЕЛЯХ ОБЕСПЕЧЕНИЯ ВЫПОЛНЕНИЯ ФУНКЦИЙ ГОСУДАРСТВЕННЫМИ (МУНИЦИПАЛЬНЫМИ) ОРГАНАМИ, КАЗЕННЫМИ УЧРЕЖДЕНИЯМИ, ОРГАНАМИ УПРАВЛЕНИЯ ГОСУДАРСТВЕННЫМИ ВНЕБЮДЖЕТНЫМИ ФОНДАМИ | C28: 100 | D28: 12118392 | E28: 12118392 | F28: 0 | G28: 0 | H28: 0 | I28: 12118392 | J28: i1_100 | N28: 0
A29: РАСХОДЫ НА ВЫПЛАТЫ ПЕРСОНАЛУ КАЗЕННЫХ УЧРЕЖДЕНИЙ | C29: 110 | D29: 12118392 | E29: 12118392 | F29: 0 | G29: 0 | H29: 0 | I29: 12118392 | J29: i1_110 | N29: 0
A30: Фонд оплаты труда учреждений | C30: 111 | D30: 9313952 | E30: 9313952 | F30: 0 | G30: 0 | H30: 0 | I30: =E30+F30+G30+H30 -> 9313952 | J30: 111 | N30: =IF(IF(D30="",0,D30)=0,0,(IF(D30>0,IF(I30>D30,0,D30-I30),IF(I30>D30,D30-I30,0)))) -> 0
A31: Взносы по обязательному социальному страхованию на выплаты по оплате труда работников и иные выплаты работникам учреждений | C31: 119 | D31: 2804440 | E31: 2804440 | F31: 0 | G31: 0 | H31: 0 | I31: =E31+F31+G31+H31 -> 2804440 | J31: 119 | N31: =IF(IF(D31="",0,D31)=0,0,(IF(D31>0,IF(I31>D31,0,D31-I31),IF(I31>D31,D31-I31,0)))) -> 0
A32: ЗАКУПКА ТОВАРОВ, РАБОТ И УСЛУГ ДЛЯ ОБЕСПЕЧЕНИЯ ГОСУДАРСТВЕННЫХ (МУНИЦИПАЛЬНЫХ) НУЖД | C32: 200 | D32: 4100515.75 | E32: 4097180.17 | F32: 0 | G32: 0 | H32: 0 | I32: 4097180.17 | J32: i1_200 | N32: 3335.58
A33: ИНЫЕ ЗАКУПКИ ТОВАРОВ, РАБОТ И УСЛУГ ДЛЯ ОБЕСПЕЧЕНИЯ ГОСУДАРСТВЕННЫХ (МУНИЦИПАЛЬНЫХ) НУЖД | C33: 240 | D33: 4100515.75 | E33: 4097180.17 | F33: 0 | G33: 0 | H33: 0 | I33: 4097180.17 | J33: i1_240 | N33: 3335.58
A34: Прочая закупка товаров, работ и услуг для обеспечения государственных (муниципальных) нужд | C34: 244 | D34: 4100515.75 | E34: 4097180.17 | F34: 0 | G34: 0 | H34: 0 | I34: =E34+F34+G34+H34 -> 4097180.17 | J34: 244 | N34: =IF(IF(D34="",0,D34)=0,0,(IF(D34>0,IF(I34>D34,0,D34-I34),IF(I34>D34,D34-I34,0)))) -> 3335.58
A35: СОЦИАЛЬНОЕ ОБЕСПЕЧЕНИЕ И ИНЫЕ ВЫПЛАТЫ НАСЕЛЕНИЮ | C35: 300 | D35: 356712 | E35: 356712 | F35: 0 | G35: 0 | H35: 0 | I35: 356712 | J35: i1_300 | N35: 0
A36: СОЦИАЛЬНЫЕ ВЫПЛАТЫ ГРАЖДАНАМ, КРОМЕ ПУБЛИЧНЫХ НОРМАТИВНЫХ СОЦИАЛЬНЫХ ВЫПЛАТ | C36: 320 | D36: 356712 | E36: 356712 | F36: 0 | G36: 0 | H36: 0 | I36: 356712 | J36: i1_320 | N36: 0
A37: Пособия, компенсации и иные социальные выплаты гражданам, кроме публичных нормативных обязательств | C37: 321 | D37: 356712 | E37: 356712 | F37: 0 | G37: 0 | H37: 0 | I37: =E37+F37+G37+H37 -> 356712 | J37: 321 | N37: =IF(IF(D37="",0,D37)=0,0,(IF(D37>0,IF(I37>D37,0,D37-I37),IF(I37>D37,D37-I37,0)))) -> 0
A38: ИНЫЕ БЮДЖЕТНЫЕ АССИГНОВАНИЯ | C38: 800 | D38: 337909 | E38: 337909 | F38: 0 | G38: 0 | H38: 0 | I38: 337909 | J38: i1_800 | N38: 0
A39: УПЛАТА НАЛОГОВ, СБОРОВ И ИНЫХ ПЛАТЕЖЕЙ | C39: 850 | D39: 337909 | E39: 337909 | F39: 0 | G39: 0 | H39: 0 | I39: 337909 | J39: i1_850 | N39: 0
A40: Уплата налога на имущество организаций и земельного налога | C40: 851 | D40: 330709 | E40: 330709 | F40: 0 | G40: 0 | H40: 0 | I40: =E40+F40+G40+H40 -> 330709 | J40: 851 | N40: =IF(IF(D40="",0,D40)=0,0,(IF(D40>0,IF(I40>D40,0,D40-I40),IF(I40>D40,D40-I40,0)))) -> 0
A41: Уплата прочих налогов, сборов | C41: 852 | D41: 7200 | E41: 7200 | F41: 0 | G41: 0 | H41: 0 | I41: =E41+F41+G41+H41 -> 7200 | J41: 852 | N41: =IF(IF(D41="",0,D41)=0,0,(IF(D41>0,IF(I41>D41,0,D41-I41),IF(I41>D41,D41-I41,0)))) -> 0
A44: Результат исполнения (дефицит / профицит) | B44: 450 | C44: х | D44: =D18-D27 -> -6916.02 | E44: =E18-E27 -> -3580.44 | F44: =F18-F27 -> 0 | G44: =G18-G27 -> 0 | H44: =H18-H27 -> 0 | I44: =I18-I27 -> -3580.44 | N44: х
A45: *** Код вида расхода (разряды с 18 по 20 кода классификации расходов бюджетов)
B46: 3. Источники финансирования дефицита средств учреждения | N46: Форма 0503737 с.5
A47: Наименование показателя* | B47: Код стро- ки | C47: Код анали- тики**** | D47: Утверждено плановых назначений | E47: Исполнено плановых назначений | N47: Не исполнено
E48: через лицевые счета | F48: через банковские счета | G48: через кассу учреждения | H48: некассовыми операциями | I48: итого | N48: плановых назначений
A50: 1 | B50: 2 | C50: 3 | D50: 4 | E50: 5 | F50: 6 | G50: 7 | H50: 8 | I50: 9 | N50: 10
A51: Источники финансирования дефицита средств - всего (стр. 520 + стр.590+ стр. 620 + стр. 700 + стр. 730 + стр. 820 + стр. 830) в том числе: | B51: 500 | D51: 6916.02 | E51: 3580.44 | F51: 0 | G51: 0 | H51: 0 | I51: 3580.44 | N51: 3335.58
A52: Внутренние источники из них: | B52: 520 | D52: 0 | E52: 0 | F52: 0 | G52: 0 | H52: 0 | I52: 0 | N52: 0
I53: =E53+F53+G53+H53 -> 0 | N53: =IF(IF(D53="",0,D53)=0,0,(IF(D53>0,IF(I53>D53,0,D53-I53),IF(I53>D53,D53-I53,0)))) -> 0
A56: Движение денежных средств | B56: 590 | C56: x | D56: =D57+D58 -> 0 | E56: 0 | F56: 0 | G56: 0 | H56: 0 | I56: 0 | N56: =N57+N58 -> 0
A57: поступление денежных средств прочие | B57: 591 | C57: 510 | I57: =E57+F57+G57+H57 -> 0 | N57: =IF(IF(D57="",0,D57)=0,0,(IF(D57>0,IF(I57>D57,0,D57-I57),IF(I57>D57,D57-I57,0)))) -> 0
A58: выбытие денежных средств | B58: 592 | C58: 610 | I58: =E58+F58+G58+H58 -> 0 | N58: =IF(IF(D58="",0,D58)=0,0,(IF(D58>0,IF(I58>D58,0,D58-I58),IF(I58>D58,D58-I58,0)))) -> 0
A59: Внешние источники***** из них: | B59: 620 | D59: 0 | E59: 0 | F59: 0 | G59: 0 | H59: 0 | I59: 0 | N59: 0
I60: =E60+F60+G60+H60 -> 0 | N60: =IF(IF(D60="",0,D60)=0,0,(IF(D60>0,IF(I60>D60,0,D60-I60),IF(I60>D60,D60-I60,0)))) -> 0
N63: Форма 0503737 с.6
A64: Наименование показателя* | B64: Код стро- ки | C64: Код анали- тики | D64: Утверждено плановых назначений | E64: Исполнено плановых назначений | N64: Не исполнено
E65: через лицевые счета | F65: через банковские счета | G65: через кассу учреждения | H65: некассовыми операциями | I65: итого | N65: плановых назначений
A67: 1 | B67: 2 | C67: 3 | D67: 4 | E67: 5 | F67: 6 | G67: 7 | H67: 8 | I67: 9 | N67: 10
A68: Изменение остатков средств | B68: 700 | C68: x | D68: 6916.02 | E68: =E69+E70 -> 3580.44 | F68: =F69+F70 -> 0 | G68: =G69+G70 -> 0 | H68: =H69+H70 -> 0 | I68: =I69+I70 -> 3580.44 | N68: =IF(IF(D68="",0,D68)=0,0,(IF(D68>0,IF(I68>D68,0,D68-I68),IF(I68>D68,D68-I68,0)))) -> 3335.58
A69: увеличение остатков средств, всего | B69: 710 | C69: 510 | D69: 0 | E69: -16906612.73 | F69: 0 | G69: 0 | H69: 0 | I69: =E69+F69+G69+H69 -> -16906612.73 | N69: х
A70: уменьшение остатков средств, всего | B70: 720 | C70: 610 | D70: 0 | E70: 16910193.17 | F70: 0 | G70: 0 | H70: 0 | I70: =E70+F70+G70+H70 -> 16910193.17 | N70: х
A71: Изменение остатков по внутренним оборотам средств учреждения в том числе: | B71: 730 | C71: x | D71: =D72+D73 -> 0 | E71: 0 | F71: 0 | G71: 0 | H71: 0 | I71: 0 | N71: =IF(IF(D71="",0,D71)=0,0,(IF(D71>0,IF(I71>D71,0,D71-I71),IF(I71>D71,D71-I71,0)))) -> 0
A72: увеличение остатков средств учреждения | B72: 731 | C72: 510 | I72: =E72+F72+G72+H72 -> 0 | N72: х
A73: уменьшение остатков средств учреждения | B73: 732 | C73: 610 | I73: =E73+F73+G73+H73 -> 0 | N73: х
A74: Изменение остатков по внутренним расчетам в том числе: | B74: 820 | C74: x | D74: =D75+D76 -> 0 | E74: =E75+E76 -> 0 | F74: =F75+F76 -> 0 | G74: 0 | H74: 0 | I74: =I75+I76 -> 0 | N74: =N75+N76 -> 0
A75: увеличение остатков по внутренним расчетам (Кт 030404510) | B75: 821 | I75: =E75+F75+G75+H75 -> 0 | N75: =IF(IF(D75="",0,D75)=0,0,(IF(D75>0,IF(I75>D75,0,D75-I75),IF(I75>D75,D75-I75,0)))) -> 0
A76: уменьшение остатков по внутренним расчетам (Дт 030404610) | B76: 822 | I76: =E76+F76+G76+H76 -> 0 | N76: =IF(IF(D76="",0,D76)=0,0,(IF(D76>0,IF(I76>D76,0,D76-I76),IF(I76>D76,D76-I76,0)))) -> 0
A77: Изменение остатков расчетов по внутренним привлечениям средств в том числе: | B77: 830 | C77: x | D77: =D78+D79 -> 0 | E77: 0 | F77: 0 | G77: 0 | H77: 0 | I77: 0 | N77: =N78+N79 -> 0
A78: увеличение расчетов по внутреннему привлечению остатков средств (Кт 030406000) | B78: 831 | I78: =E78+F78+G78+H78 -> 0 | N78: =IF(IF(D78="",0,D78)=0,0,(IF(D78>0,IF(I78>D78,0,D78-I78),IF(I78>D78,D78-I78,0)))) -> 0
A79: уменьшение расчетов по внутреннему привлечению остатков средств (Дт 030406000) | B79: 832 | I79: =E79+F79+G79+H79 -> 0 | N79: =IF(IF(D79="",0,D79)=0,0,(IF(D79>0,IF(I79>D79,0,D79-I79),IF(I79>D79,D79-I79,0)))) -> 0
A80: **** Код аналитической группы вида источников финансирования дефицитов бюджетов (разряды с 18 по 20 кода классификации источников финансирования дефицита бюджета) ***** Показатели по строкам формируются только по виду деятельности "Приносящая доход деятельность (Собственные доходы учреждения)"
B81: 4. Сведения о возвратах остатков субсидий и расходов прошлых лет
H82: Форма 0503737 с.7
A83: Наименование показателя* | B83: Код стро- ки | C83: Код анали- тики | D83: Произведено возвратов
D84: через лицевые счета | E84: через банковские счета | F84: через кассу учреждения | G84: некассовыми операциями | H84: итого
A87: 1 | B87: 2 | C87: 3 | D87: 4 | E87: 5 | F87: 6 | G87: 7 | H87: 8
A88: Возвращено остатков субсидий прошлых лет, всего из них по кодам аналитики: | B88: 910 | C88: х | D88: 0 | E88: 0 | F88: 0 | G88: 0 | H88: 0
H89: =D89+E89+F89+G89 -> 0
A92: Возвращено расходов прошлых лет, всего******* из них по кодам аналитики: | B92: 950 | C92: х | D92: 0 | E92: 0 | F92: 0 | G92: 0 | H92: 0
H93: =D93+E93+F93+G93 -> 0
A96: ****** Формируется только в части возвратов субсидии на выполнение государственного (муниципального) задания ******* Показатели по строке 950 по кодам аналитики в 2016 году не формируются
E97: Руководитель финансово- экономической службы _____________________________
A98: Руководитель __________________________
A99: (подпись) | B99: (расшифровка подписи) | F99: (подпись) | H99: (расшифровка подписи)
A100: Главный бухгалтер______________________
A101: (подпись) | B101: (расшифровка подписи)
D102: Централизованная бухгалтерия
G103: (наименование, ОГРН, ИНН,КПП, местонахождение )
C104: Руководитель
C105: (уполномоченное лицо) | E105: (должность) | G105: (подпись) | H105: (расшифровка подписи)
A106: Исполнитель
B107: (должность) | E107: (подпись) | F107: (расшифровка подписи) | H107: (телефон, e-mail)
A108: "________" _______________ 20 ___ г.
